bitfinex/quotes_ETHUSD_20251124
["timestamp","ask_amount","ask_price","bid_price","bid_amount"]
[1763989812256,11.53913342,2823.6,2823.5,22.324991]
[1763989813339,11.94463742,2823.6,2823.5,22.324991]
[1763989813860,2.78446459,2823.6,2823.5,22.324991]
[1763989814175,1.93229264,2823.6,2823.5,22.324991]
[1763989815646,1.0253,2823.6,2823.5,22.324991]
[1763989817084,0.5317,2823.6,2823.5,22.324991]
[1763989817377,1.0253,2823.6,2823.5,22.324991]
[1763989818788,0.0012,2824.4,2823.5,22.324991]
[1763989818945,0.0012,2824.4,2823.6,2.7273991]
[1763989819144,0.0012,2824.4,2823.7,0.09416]
[1763989819481,0.4928,2824.3,2823.6,2.2324991]
[1763989820053,0.4928,2824.3,2823.5,22.324991]
[1763989820468,0.4531,2823.6,2823.5,22.324991]
[1763989820659,0.4928,2824.3,2823.5,22.324991]
[1763989820891,0.1934,2823.9,2823.5,22.324991]
[1763989821124,0.0012,2824.4,2823.5,22.324991]
[1763989821525,0.4626,2824.3,2823.5,22.324991]
[1763989822205,0.5496,2823.6,2823.5,22.324991]
[1763989823210,1.0122,2823.6,2823.5,22.324991]
[1763989824744,1.20411926,2823.6,2823.5,22.324991]
[1763989824884,7.0329819,2823.6,2823.5,22.324991]
[1763989825088,6.0406319,2823.6,2823.5,22.324991]
[1763989825285,1.36009264,2823.6,2823.5,22.324991]
[1763989825498,0.0012,2824.4,2823.5,23.499291]
[1763989825699,0.0012,2824.4,2824.3,0.6441]
[1763989825905,0.0012,2824.4,2824.3,0.8721]
[1763989826111,0.0012,2824.4,2824.3,1.45046]
[1763989826311,0.0012,2824.4,2824.3,1.3563]
[1763989826510,0.0012,2824.4,2824.3,0.6441]
[1763989826712,0.0012,2824.4,2824.3,1.3563]
[1763989827116,0.0012,2824.4,2824.3,1.45046]
[1763989827426,7.03434962,2826.3,2824.3,1.45046]
[1763989827427,0.4626,2826.6,2824.4,3.33639664]
[1763989827581,1.12034069,2827.0,2824.4,3.33639664]
[1763989827582,0.4626,2826.4,2825.0,0.405504]
[1763989827897,0.4626,2826.4,2825.4,0.09416]
[1763989827898,0.18504093,2826.1,2825.4,0.09416]
[1763989828081,0.18504093,2826.1,2825.5,0.23]
[1763989828285,0.18504093,2826.1,2825.6,0.23]
[1763989828487,0.4626,2826.8,2825.6,0.23]
[1763989828684,0.4626,2826.8,2825.7,0.57836]
[1763989828685,0.18503257,2826.5,2825.7,0.57836]
[1763989829321,0.18503257,2826.5,2825.7,0.4842]
[1763989830288,0.18503257,2826.5,2825.8,0.23]
[1763989830735,0.18503257,2826.5,2825.8,0.7142]
[1763989830935,0.18503257,2826.5,2825.8,0.80836]
[1763989831140,0.1934,2827.0,2826.4,0.4989]
[1763989831292,0.18499366,2826.8,2826.4,0.4989]
[1763989832256,0.18499366,2826.8,2826.4,0.9831]
[1763989832527,0.18499366,2826.8,2826.4,0.4989]
[1763989832914,0.4626,2827.9,2826.7,0.4621]
[1763989833115,0.4626,2827.9,2826.4,0.0368]
[1763989833313,0.4626,2827.9,2825.5,0.430583]
[1763989833314,0.6465,2826.5,2825.5,0.57836]
[1763989833495,1.1091,2826.5,2825.5,0.4842]
[1763989833697,0.64763541,2826.4,2825.1,0.182]
[1763989833929,0.64763541,2826.4,2825.1,0.6662]
[1763989834109,0.64763541,2826.4,2825.1,0.182]
[1763989834110,0.4626,2826.3,2825.1,0.182]
[1763989834422,0.4626,2826.3,2824.8,0.7142]
[1763989834621,1.36959264,2826.3,2824.4,0.09416]
[1763989834825,1.36959264,2826.3,2824.5,0.23]
[1763989834826,0.85889777,2826.2,2824.5,0.23]
[1763989835030,3.623272,2826.1,2824.3,0.182]
[1763989835322,0.4626,2826.1,2824.3,0.76036]
[1763989835512,0.4626,2826.0,2824.4,0.4842]
[1763989835900,0.1934,2825.9,2824.4,0.4842]
[1763989836439,0.4626,2825.8,2824.3,0.182]
[1763989836629,0.4626,2825.8,2824.4,0.4842]
[1763989836630,0.76903496,2825.7,2824.4,0.4842]
[1763989836963,0.1934,2825.8,2824.9,0.09416]
[1763989837160,0.1934,2825.8,2824.3,0.6662]
[1763989837161,0.656,2825.8,2824.3,0.6662]
[1763989837536,0.1934,2825.8,2824.7,0.405504]
[1763989837854,0.90699264,2826.9,2824.3,3.72270035]
[1763989837855,0.90699264,2826.9,2825.8,6.122006]
[1763989838036,4.50025483,2828.3,2826.8,0.179]
[1763989838037,0.1934,2828.3,2826.8,0.179]
[1763989838237,0.1934,2828.3,2826.8,0.409]
[1763989838534,0.1934,2828.3,2826.8,0.179]
[1763989838535,0.4626,2828.2,2826.8,0.179]
[1763989838962,0.4626,2828.2,2826.9,0.09416]
[1763989839165,0.4626,2828.2,2826.8,0.179]
[1763989839687,0.4626,2828.2,2826.8,0.27316]
[1763989839972,0.4626,2828.2,2826.8,0.6632]
[1763989840338,0.4626,2828.2,2826.9,0.09416]
[1763989840676,0.4626,2828.2,2826.8,0.6632]
[1763989840966,0.4626,2828.2,2826.8,0.179]
[1763989841423,0.4626,2828.2,2826.2,0.179]
[1763989841424,0.1934,2826.9,2826.2,0.179]
[1763989841778,0.90699264,2827.8,2826.2,0.27316]
[1763989841929,0.1934,2827.3,2826.2,0.6632]
[1763989842131,0.1934,2827.3,2826.4,0.09416]
[1763989842467,0.4626,2827.7,2826.4,0.09416]
[1763989842627,0.4626,2827.7,2826.8,0.09416]
[1763989842937,0.4626,2827.7,2826.5,0.4842]
[1763989843260,0.3783486,2828.3,2826.9,0.09416]
[1763989843426,0.3783486,2828.3,2827.1,0.09416]
[1763989843640,0.3783486,2828.3,2827.0,0.4842]
[1763989843842,0.1934,2828.3,2827.2,0.09416]
[1763989844138,0.1934,2828.3,2827.0,0.4842]
[1763989844347,0.18493211,2828.5,2827.0,0.4842]
[1763989844689,0.18491104,2829.0,2827.0,0.4842]
[1763989844897,0.18491104,2829.0,2827.2,0.09416]
[1763989845247,0.4626,2828.9,2827.3,0.09416]
[1763989845748,0.4626,2828.9,2827.4,0.09416]
[1763989845948,0.4626,2828.9,2827.3,0.4842]
[1763989846463,0.4626,2828.9,2827.3,0.57836]
[1763989846656,0.4626,2828.9,2827.3,0.4842]
[1763989846844,0.4626,2828.9,2827.3,0.57836]
[1763989847247,0.4626,2828.9,2827.3,0.80836]
[1763989847559,0.002,2828.3,2827.3,0.80836]
[1763989847888,0.002,2828.3,2827.3,0.7142]
[1763989848204,0.4565,2828.3,2826.9,0.4585]
[1763989848499,0.4565,2828.3,2826.7,0.23]
[1763989848645,0.4565,2828.3,2826.5,0.4585]
[1763989848646,0.4565,2828.3,2826.5,0.55266]
[1763989848846,0.4565,2828.3,2826.6,0.23]
[1763989849080,0.4565,2828.3,2826.5,0.4585]
[1763989849457,0.4565,2828.3,2826.5,0.78266]
[1763989849653,0.4565,2828.3,2826.5,0.6885]
[1763989849957,0.4565,2828.3,2826.2,0.179]
[1763989850280,0.90699264,2828.1,2826.2,0.27316]
[1763989850482,1.55142963,2828.0,2826.2,0.179]
[1763989850780,2.03472963,2828.0,2826.3,0.4673]
[1763989850946,0.6762,2827.9,2826.3,0.4673]
[1763989851146,0.6762,2827.9,2826.3,0.56146]
[1763989851342,0.4833,2827.8,2826.3,0.56146]
[1763989851645,0.4833,2827.8,2826.3,0.4673]
[1763989851985,0.4833,2827.8,2826.3,0.56146]
[1763989852287,0.4833,2827.8,2826.2,0.409]
[1763989852288,7.94416466,2827.7,2826.2,0.179]
[1763989852486,7.94416466,2827.7,2825.7,0.0368]
[1763989852487,0.1929,2826.4,2825.7,0.0368]
[1763989852656,1.32604647,2827.6,2825.8,0.4673]
[1763989852860,0.4833,2827.5,2825.9,0.12954695]
[1763989853166,0.4833,2827.5,2826.1,0.09416]
[1763989853677,0.4833,2827.5,2826.2,0.1925]
[1763989855948,0.4833,2827.5,2826.1,0.1925]
[1763989856480,0.4833,2827.5,2825.7,0.0368]
[1763989856681,0.4833,2827.5,2825.8,0.4673]
[1763989856988,0.4833,2827.5,2825.9,0.09416]
[1763989857156,0.4833,2827.5,2826.0,0.4673]
[1763989857656,0.4833,2827.5,2825.7,0.0368]
[1763989857657,0.4833,2827.5,2825.7,0.13096]
[1763989857842,0.4833,2827.5,2825.8,0.4673]
[1763989858047,0.4833,2827.5,2825.9,0.09416]
[1763989858480,0.4833,2827.5,2825.7,0.0368]
[1763989858646,0.4833,2827.5,2825.9,0.4673]
[1763989859055,0.4833,2827.5,2825.9,0.56146]
[1763989859681,0.4833,2827.5,2825.9,0.4673]
[1763989859984,1.39029264,2827.5,2825.7,0.0368]
[1763989860146,0.89289533,2827.4,2825.7,0.5041]
[1763989860346,1.37619533,2827.4,2825.8,0.09416]
[1763989860546,0.4833,2827.3,2825.8,0.56146]
[1763989860769,0.4833,2827.3,2825.9,0.09416]
[1763989860982,0.4833,2827.3,2826.1,0.09416]
[1763989861349,0.4833,2827.6,2826.2,0.28666]
[1763989861559,0.4833,2827.6,2826.2,0.1925]
[1763989861760,0.4833,2827.6,2826.2,0.1425]
[1763989862102,0.4833,2827.6,2826.2,0.6098]
[1763989862392,0.4833,2827.6,2826.2,0.1425]
[1763989862896,0.4833,2827.6,2825.9,0.4673]
[1763989863301,0.4833,2827.6,2825.9,0.56146]
[1763989863463,0.4833,2827.6,2825.9,0.4673]
[1763989865299,0.4833,2827.6,2825.9,0.56146]
[1763989865508,0.4833,2827.6,2825.9,0.4673]
[1763989865902,5.780454,2827.5,2825.7,0.0368]
[1763989866063,0.6263754,2827.4,2825.7,0.5041]
[1763989866267,0.6263754,2827.4,2825.7,0.59826]
[1763989866463,0.4833,2827.3,2825.7,0.5041]
[1763989866695,0.4833,2827.3,2825.8,0.4673]
[1763989867003,0.4825,2827.3,2825.9,0.09416]
[1763989867360,0.4825,2827.3,2825.9,0.56146]
[1763989867780,0.4825,2827.3,2825.9,0.4673]
[1763989867981,0.4825,2827.3,2825.7,0.0368]
[1763989868272,0.4825,2827.3,2825.7,0.5041]
[1763989868688,0.4825,2827.3,2825.7,0.59826]
[1763989868893,0.4825,2827.3,2825.7,0.5041]
[1763989869602,0.4825,2827.3,2825.7,0.0368]
[1763989870113,0.4825,2827.3,2825.7,0.5041]
[1763989870286,0.4825,2827.3,2825.7,0.0368]
[1763989870617,0.1929,2827.9,2825.7,0.0368]
[1763989870618,0.4833,2827.6,2826.0,0.405504]
[1763989870778,0.4833,2827.6,2826.1,0.67179786]
[1763989871096,0.4833,2827.6,2826.1,0.1807]
[1763989871299,0.4833,2827.6,2826.2,0.4673]
[1763989872412,0.4833,2827.6,2826.1,0.1807]
[1763989873222,0.4833,2827.6,2826.2,0.56146]
[1763989874414,0.4833,2827.6,2826.2,0.4673]
[1763989874781,0.4833,2827.6,2826.3,0.09416]
[1763989874980,0.4833,2827.6,2826.2,0.4673]
[1763989875183,0.4833,2827.6,2826.4,0.09416]
[1763989875408,0.4833,2827.6,2826.2,0.56146]
[1763989875595,0.4833,2827.6,2826.2,0.4673]
[1763989876014,0.4833,2827.6,2826.1,0.1807]
[1763989876689,3.07829264,2827.5,2825.5,0.6963]
[1763989876894,1.96517123,2827.4,2825.5,0.6963]
[1763989877102,0.90699264,2827.2,2825.5,0.4673]
[1763989877411,0.4833,2827.3,2825.5,0.4673]
[1763989877614,0.4833,2827.2,2825.5,0.4673]
[1763989877980,0.4833,2827.2,2825.8,0.4673]
[1763989878182,0.4833,2827.2,2825.8,0.56146]
[1763989878688,0.4833,2827.2,2825.7,0.0368]
[1763989879112,0.4833,2827.2,2824.9,3.31449156]
[1763989879113,0.90699264,2827.0,2825.2,0.4673]
[1763989879297,6.616944,2826.9,2825.2,0.4673]
[1763989879500,0.6814,2826.9,2825.2,0.4673]
[1763989879810,0.4955,2826.8,2825.2,0.4673]
[1763989880019,0.4955,2826.8,2825.3,0.09416]
[1763989880223,0.4955,2826.8,2825.4,0.4798]
[1763989880520,0.4955,2826.8,2825.5,0.12955196]
[1763989880716,0.4955,2826.8,2825.4,0.4798]
[1763989880916,0.4955,2826.8,2825.5,0.40192348]
[1763989881161,0.4955,2826.8,2825.6,0.09416]
[1763989881617,0.4955,2826.8,2825.7,0.4798]
[1763989882014,0.4955,2826.8,2825.6,0.001]
[1763989882847,1.40249264,2826.8,2825.6,0.001]
[1763989883432,0.4955,2826.7,2825.6,0.001]
[1763989884495,0.1859,2826.0,2825.6,0.001]
[1763989884752,0.1859,2826.6,2825.6,0.001]
[1763989884956,0.6814,2826.6,2825.6,0.001]
[1763989885322,0.6638,2825.7,2825.6,0.001]
[1763989885841,2.06629264,2825.7,2825.6,0.001]
[1763989886043,2.2729219,2825.7,2825.6,0.001]
[1763989888377,9.25607382,2825.7,2825.6,0.001]
[1763989888857,9.25607382,2825.7,2824.4,0.001]
[1763989888858,1.31249664,2825.4,2824.4,0.001]
[1763989889022,0.1908,2824.5,2824.4,0.001]
[1763989889423,0.6863,2824.5,2824.4,0.001]
[1763989890358,0.1908,2824.5,2824.4,0.001]
[1763989890858,0.4955,2824.8,2824.4,0.001]
[1763989891257,0.4779,2824.5,2824.4,0.001]
[1763989891631,0.9734,2824.5,2824.4,0.001]
[1763989891823,1.81920406,2824.5,2824.4,0.001]
[1763989892759,0.9734,2824.5,2824.4,0.001]
[1763989893272,1.88039264,2824.5,2824.4,0.001]
[1763989893470,8.78314164,2824.5,2824.4,0.001]
[1763989893657,4.41243964,2824.5,2824.4,0.001]
[1763989895071,4.00693564,2824.5,2824.4,0.001]
[1763989895272,4.4076292,2824.5,2824.4,0.001]
[1763989895671,0.17734871,2825.6,2824.4,0.001]
[1763989895672,0.4955,2824.9,2824.4,0.001]
[1763989898249,0.4779,2824.5,2824.4,0.001]
[1763989898644,0.9734,2824.5,2824.4,0.001]
[1763989903750,0.4779,2824.5,2824.4,0.001]
[1763989903975,0.9734,2824.5,2824.4,0.001]
[1763989905278,2.00440184,2824.5,2824.4,0.001]
[1763989905520,1.03100184,2824.5,2824.4,0.001]
[1763989905727,0.18519778,2824.5,2824.4,0.001]
[1763989909016,0.66539778,2824.5,2824.4,0.001]
[1763989910725,0.18519778,2824.5,2824.4,0.001]
[1763989913714,0.51548789,2824.5,2824.4,0.001]
[1763989914125,1.17689778,2824.5,2824.4,0.001]
[1763989914429,1.50718789,2824.5,2824.4,0.001]
[1763989914790,1.50638789,2824.5,2824.4,0.001]
[1763989914999,7.22415253,2824.5,2824.4,0.001]
[1763989915204,3.13579578,2824.5,2824.4,0.001]
[1763989915400,2.41338053,2824.5,2824.4,0.001]
[1763989916507,4.55118753,2824.5,2824.4,0.001]
[1763989917240,12.81611877,2824.5,2824.4,0.001]
[1763989917535,2.41338053,2824.5,2824.4,0.001]
[1763989917904,3.17785592,2824.5,2824.4,0.001]
[1763989918136,3.49564151,2824.5,2824.4,0.001]
[1763989918338,2.73116612,2824.5,2824.4,0.001]
[1763989918544,2.73116612,2824.5,2823.5,22.324991]
[1763989918545,0.221,2824.2,2823.5,22.324991]
[1763989918845,10.85092664,2824.4,2823.5,10.1634587]
[1763989918846,14.84947042,2823.6,2823.5,10.1634587]
[1763989919008,1.31249664,2823.5,2823.2,0.001]
[1763989919210,1.31249664,2823.5,2822.9,0.001]
[1763989919211,1.31249664,2823.0,2822.9,0.001]
[1763989919438,18.83611644,2823.0,2822.9,0.001]
[1763989919655,18.83611644,2823.0,2820.0,0.1827]
[1763989919656,1.31249664,2822.8,2820.7,0.6766]
[1763989919856,0.90699264,2822.1,2821.2,0.49]
[1763989920142,0.33029011,2822.0,2821.4,0.49]
[1763989920302,2.4932853,2822.6,2821.4,0.49]
[1763989920504,1.09439266,2822.5,2821.4,0.49]
[1763989920718,0.33029011,2822.4,2821.6,0.49]
[1763989921062,1.39889264,2822.6,2820.7,0.1866]
[1763989921063,0.33029011,2822.3,2821.9,0.49]
[1763989921355,1.72918275,2822.6,2821.5,0.491]
[1763989921507,0.82219011,2822.5,2821.5,0.491]
[1763989921707,0.33029011,2822.4,2821.6,0.49]
[1763989921925,0.33029011,2822.6,2821.6,0.49]
[1763989922222,0.33029011,2822.5,2821.5,0.001]
[1763989922426,0.33029011,2822.6,2821.8,0.491]
[1763989922623,0.33029011,2823.0,2821.8,0.491]
[1763989922859,0.33029011,2823.0,2821.8,0.001]
[1763989922860,0.90699264,2822.2,2821.8,0.001]
[1763989923064,0.33029011,2822.1,2821.8,0.001]
[1763989923206,0.33029011,2822.1,2821.8,0.491]
[1763989923413,0.90699264,2822.6,2821.8,0.491]
[1763989923414,0.33029011,2822.5,2821.8,0.491]
[1763989923614,0.33029011,2822.5,2821.8,0.001]
[1763989923875,0.33029011,2822.5,2821.5,0.001]
[1763989923876,0.2314,2821.9,2821.5,0.001]
[1763989924014,3.105089,2821.6,2821.5,0.001]
[1763989924355,1.64668675,2821.6,2821.5,0.001]
[1763989924510,1.24118275,2821.6,2821.5,0.001]
[1763989924711,4.26100775,2821.6,2821.5,0.001]
[1763989924909,1.24118275,2821.6,2821.5,0.001]
[1763989925747,1.23728275,2821.6,2821.5,0.001]
[1763989925920,0.90699264,2821.6,2821.5,0.001]
[1763989926937,0.90699264,2821.6,2821.5,0.9668]
[1763989927140,0.90699264,2821.6,2821.5,0.4768]
[1763989927536,7.47505192,2822.5,2821.5,0.4768]
[1763989927537,7.06954792,2822.5,2821.5,0.9668]
[1763989927846,1.2357064,2822.4,2821.5,0.9668]
[1763989928042,0.32871376,2822.3,2821.5,0.4768]
[1763989928747,2.451734,2822.2,2821.5,0.4768]
[1763989928942,0.90699264,2822.2,2821.5,0.4768]
[1763989929308,1.39889264,2822.4,2821.5,0.4768]
[1763989929513,0.32849698,2822.3,2821.5,0.9668]
[1763989929752,0.73398781,2822.6,2821.5,0.9668]
[1763989929916,1.23547645,2822.5,2821.5,0.9668]
[1763989930147,0.32848381,2822.4,2821.5,0.9668]
[1763989930542,0.32848381,2822.4,2821.5,0.4768]
[1763989930749,0.32848381,2822.4,2821.6,0.49]
[1763989933066,0.90699264,2822.2,2821.6,0.49]
[1763989933273,0.90699264,2822.2,2821.5,0.001]
[1763989933567,0.4919,2822.1,2821.5,0.001]
[1763989933798,0.90699264,2822.5,2821.5,0.001]
[1763989933969,0.90699264,2822.2,2821.6,0.49]
[1763989934185,3.085785,2822.4,2821.6,0.49]
[1763989934347,2.145785,2822.4,2821.6,0.49]
[1763989934766,0.90699264,2822.5,2821.6,0.49]
[1763989935361,2.631403,2822.4,2821.5,0.001]
[1763989935562,0.67725369,2822.4,2821.5,0.001]
[1763989936114,0.18535369,2822.4,2821.6,0.49]
[1763989937086,2.93242564,2822.3,2821.5,0.001]
[1763989937403,0.90699264,2822.3,2821.5,0.001]
[1763989938251,1.39809264,2822.3,2821.5,0.001]
[1763989938652,0.90619264,2822.3,2821.6,0.49]
[1763989939085,0.90619264,2822.3,2821.5,0.001]
[1763989939496,0.90819264,2822.3,2821.5,0.491]
[1763989940151,1.78289664,2822.2,2821.5,0.001]
[1763989940386,0.002,2822.3,2821.5,0.4966]
[1763989940552,0.33090066,2822.3,2821.5,0.4966]
[1763989940982,0.002,2822.3,2821.5,0.4966]
[1763989941771,0.90699264,2822.0,2821.5,0.001]
[1763989942189,0.6433,2821.9,2821.5,0.001]
[1763989942494,0.90699264,2822.0,2821.5,0.001]
[1763989942678,0.407504,2822.3,2821.5,0.4966]
[1763989943057,0.002,2822.3,2821.5,0.4966]
[1763989943253,0.4724,2822.3,2821.5,0.001]
[1763989943585,0.90699264,2822.0,2821.5,0.001]
[1763989943793,2.1971,2822.1,2821.5,0.001]
[1763989943994,2.038188,2822.1,2821.5,0.001]
[1763989944286,1.37739264,2822.0,2821.5,0.001]
[1763989944682,0.002,2822.3,2821.5,0.4966]
[1763989944865,0.407504,2822.3,2821.5,0.4966]
[1763989945800,0.877904,2822.3,2821.5,0.4966]
[1763989947710,0.877904,2822.3,2821.5,0.001]
[1763989947911,0.4704,2822.2,2821.5,0.001]
[1763989948677,1.23534896,2822.2,2821.5,0.001]
[1763989948872,0.76494896,2822.2,2821.5,0.4966]
[1763989949079,0.002,2822.3,2821.5,0.4966]
[1763989950796,0.90699264,2822.1,2821.5,0.4966]
[1763989951310,0.002,2822.3,2822.0,0.4755]
[1763989951616,0.33214305,2822.2,2821.5,0.4966]
[1763989951814,0.33214305,2822.1,2821.5,0.4966]
[1763989952018,0.33214305,2822.0,2821.5,0.4966]
[1763989952180,0.33214305,2821.9,2821.5,0.4966]
[1763989952382,0.002,2822.3,2821.5,0.4966]
[1763989952383,0.33214305,2822.2,2821.5,0.4966]
[1763989952590,0.33214305,2822.1,2821.5,0.4966]
[1763989952790,0.33214305,2822.0,2821.5,0.4966]
[1763989953012,0.33214305,2821.9,2821.5,0.4966]
[1763989953189,0.33214305,2822.2,2821.5,0.4966]
[1763989953420,0.33214305,2822.1,2821.5,0.4966]
[1763989953734,0.33214305,2822.0,2821.5,0.4966]
[1763989953936,0.33214305,2821.9,2821.5,0.4966]
[1763989954218,0.33214305,2822.2,2821.5,0.4966]
[1763989954395,0.33214305,2822.1,2821.5,0.4966]
[1763989954715,0.33214305,2822.0,2821.5,0.4966]
[1763989954916,0.33214305,2821.9,2821.5,0.4966]
[1763989955121,0.33214305,2821.8,2821.5,0.4966]
[1763989955430,0.33214305,2822.2,2821.5,0.4966]
[1763989955728,0.33214305,2822.1,2821.7,0.4755]
[1763989955926,0.33214305,2822.0,2821.8,0.4956]
[1763989956231,0.33214305,2821.9,2821.8,0.4956]
[1763989956601,0.33214305,2821.9,2821.8,0.9711]
[1763989958511,0.33214305,2821.9,2821.5,0.001]
[1763989958715,0.33214305,2821.8,2821.5,0.001]
[1763989959027,0.33214305,2821.7,2821.6,0.4956]
[1763989959401,0.33214305,2821.7,2821.6,0.9711]
[1763989961934,0.33134305,2821.7,2821.6,0.9711]
[1763989962637,0.33134305,2821.7,2821.6,0.4755]
[1763989964332,0.33134305,2821.7,2821.6,0.9711]
[1763989964547,0.002,2822.3,2821.6,0.9711]
[1763989964700,0.002,2822.3,2821.7,0.4956]
[1763989965534,0.002,2822.3,2822.2,0.4755]
[1763989965733,0.002,2822.3,2821.7,0.4956]
[1763989965912,0.76785915,2822.3,2821.7,0.4956]
[1763989966110,0.002,2822.3,2821.7,0.4956]
[1763989966626,0.4797,2822.3,2821.5,0.001]
[1763989967430,1.24556691,2822.3,2821.5,0.001]
[1763989967850,0.76786691,2822.3,2821.5,0.4861]
[1763989968145,1.24556691,2822.3,2821.5,0.4861]
[1763989968560,0.90699264,2822.1,2821.5,0.001]
[1763989969139,0.18535358,2822.0,2821.5,0.001]
[1763989969653,0.18535358,2822.0,2821.5,0.4576]
[1763989970850,0.18535358,2822.0,2821.9,0.484]
[1763989971246,0.26735358,2822.0,2821.5,0.001]
[1763989971451,0.26735358,2822.0,2821.5,0.4576]
[1763989972030,0.18535358,2822.0,2821.9,0.484]
[1763989972447,0.18535358,2822.0,2821.9,0.9406]
[1763989972645,0.90699264,2822.1,2821.9,0.9406]
[1763989972861,0.90699264,2822.1,2822.0,0.9406]
[1763989973752,0.90699264,2822.1,2821.6,0.4566]
[1763989974070,0.33244935,2822.0,2821.6,0.4566]
[1763989974367,0.33244935,2821.9,2821.6,0.4566]
[1763989974543,0.33244935,2821.8,2821.6,0.4566]
[1763989974725,0.90699264,2822.1,2821.6,0.4566]
[1763989974726,0.33244935,2822.0,2821.6,0.4566]
[1763989974929,0.33244935,2821.9,2821.6,0.4566]
[1763989975157,0.33244935,2822.0,2821.6,0.4566]
[1763989975337,0.33244935,2821.9,2821.6,0.4566]
[1763989975542,0.33244935,2822.0,2821.6,0.4566]
[1763989975742,0.33244935,2821.9,2821.6,0.4566]
[1763989975955,0.33244935,2822.0,2821.6,0.4566]
[1763989976150,0.33244935,2821.9,2821.6,0.4566]
[1763989976377,0.33244935,2822.0,2821.6,0.4566]
[1763989976575,0.90699264,2822.1,2821.6,0.4566]
[1763989976576,0.33244935,2821.9,2821.6,0.4566]
[1763989976738,0.33244935,2822.0,2821.6,0.4566]
[1763989977162,0.33247926,2822.1,2821.9,0.484]
[1763989977374,0.33247926,2822.1,2821.6,0.4566]
[1763989977543,0.33247926,2822.1,2822.0,0.484]
[1763989977959,0.33247926,2822.1,2822.0,0.9406]
[1763989979445,6.44,2822.2,2822.0,0.9406]
[1763989979782,7.33921447,2822.2,2822.1,1.1213]
[1763989979982,7.67157228,2822.2,2822.1,1.1213]
[1763989980187,7.67157228,2822.2,2822.1,0.6647]
[1763989980558,7.67157228,2822.2,2822.1,1.1213]
[1763989981096,0.002,2822.3,2822.1,1.1213]
[1763989981253,0.33226628,2823.2,2822.3,0.09416]
[1763989981455,0.51752913,2823.5,2822.5,0.484]
[1763989981689,0.51752913,2823.5,2822.1,0.1807]
[1763989981690,0.163,2822.9,2822.3,0.4566]
[1763989981902,0.163,2822.9,2822.1,0.1807]
[1763989981903,0.79946628,2822.8,2822.1,0.1807]
[1763989982207,0.33226628,2822.7,2822.1,0.6373]
[1763989982560,0.33426628,2822.6,2822.1,0.6373]
[1763989982781,0.002,2822.6,2822.1,0.6373]
[1763989982977,0.33426628,2822.6,2822.1,0.1807]
[1763989983178,0.33426628,2822.6,2822.5,0.484]
[1763989983179,0.002,2822.6,2822.5,0.484]
[1763989983380,0.33426628,2822.6,2822.5,0.484]
[1763989983600,0.002,2822.6,2822.5,0.484]
[1763989983909,0.4689,2822.6,2822.2,0.4566]
[1763989984218,0.33226628,2822.5,2822.3,0.4566]
[1763989984423,0.002,2822.6,2822.5,0.484]
[1763989984779,0.002,2822.6,2822.5,0.9406]
[1763989985680,0.0012,2822.6,2822.5,0.9406]
[1763989991733,0.0012,2822.6,2822.5,0.9416]
[1763989992502,0.0012,2822.6,2822.5,0.485]
[1763989992834,0.0012,2822.6,2822.5,0.9416]
[1763989993201,0.0012,2822.6,2822.5,1.03576]
[1763989994243,0.0012,2822.6,2822.5,0.9416]
[1763989998645,0.0012,2822.6,2822.5,0.485]
[1763989998818,0.0012,2822.6,2822.5,0.001]
[1763989999442,0.0012,2822.6,2822.2,0.04635]
[1763990000132,0.0012,2822.6,2821.5,0.001]
[1763990000510,0.4773,2822.6,2821.5,0.001]
[1763990000715,0.0012,2822.6,2821.5,0.001]
[1763990000918,0.0012,2822.6,2821.5,0.03644214]
[1763990001410,0.0012,2822.6,2822.0,0.4646]
[1763990001847,0.0012,2822.6,2822.1,0.136]
[1763990002426,0.0012,2822.6,2822.1,0.6006]
[1763990002946,0.0012,2822.6,2822.1,0.136]
[1763990003141,0.0012,2822.6,2822.5,0.47]
[1763990003534,0.0012,2822.6,2822.1,0.136]
[1763990003535,0.9566,2822.6,2822.1,0.136]
[1763990003735,0.9566,2822.6,2821.9,0.4656]
[1763990004224,0.0012,2822.6,2821.9,0.4656]
[1763990007072,0.4773,2822.6,2821.9,0.001]
[1763990007754,0.4773,2822.6,2821.9,0.4656]
[1763990007935,0.0012,2822.6,2822.5,0.606]
[1763990009025,0.0012,2822.6,2822.5,0.47]
[1763990009227,0.0012,2822.6,2822.2,0.194]
[1763990009535,0.0004,2822.6,2822.2,0.194]
[1763990011155,0.0004,2822.6,2822.5,0.3708]
[1763990012127,0.0004,2822.6,2822.2,0.194]
[1763990012925,0.0004,2822.6,2822.5,0.3708]
[1763990014257,0.0004,2822.6,2822.5,0.7416]
[1763990014660,0.0004,2822.6,2822.5,0.42642]
[1763990014971,0.0004,2822.6,2822.2,0.194]
[1763990016139,0.496,2822.3,2821.9,0.001]
[1763990016395,0.4761,2822.5,2821.9,0.001]
[1763990016598,0.33221098,2822.4,2821.9,0.001]
[1763990017068,0.4761,2822.3,2821.9,0.001]
[1763990018375,0.0004,2822.6,2821.9,0.001]
[1763990018376,0.4761,2822.5,2821.9,0.001]
[1763990018942,0.0004,2822.6,2821.9,0.001]
[1763990019356,0.0004,2822.6,2821.9,0.03643711]
[1763990019560,0.33253888,2822.6,2821.9,0.03643711]
[1763990020073,0.0004,2822.6,2821.9,0.03643711]